bitfinex/quotes_ETHUSD_20251012
["timestamp","ask_amount","ask_price","bid_price","bid_amount"]
[1760238997685,2.65012985,3773.4,3773.3,0.132]
[1760238997885,1.92,3773.7,3770.4,13.33336019]
[1760238998086,1.92,3773.1,3769.4,13.33336019]
[1760238998285,2.65069183,3772.6,3772.5,0.132]
[1760238998484,1.92,3772.6,3770.8,2.65189425]
[1760238998696,1.92,3772.6,3769.1,3.92562833]
[1760238998697,2.65152864,3771.5,3770.6,2.65204095]
[1760238998994,2.65118375,3771.9,3771.8,0.132]
[1760238999207,0.4352,3772.1,3771.4,0.132]
[1760238999386,2.65118375,3771.9,3771.8,0.132]
[1760238999583,4.57118375,3771.9,3768.9,13.33336019]
[1760238999802,2.65187826,3771.0,3769.1,2.65309711]
[1760238999999,2.65211145,3770.6,3768.5,2.65351698]
[1760239000204,2.65181649,3771.0,3769.3,2.65301022]
[1760239000398,13.33336019,3771.2,3768.1,2.65385738]
[1760239000616,1.92,3771.1,3770.6,0.132]
[1760239000823,2.65202747,3770.7,3770.6,0.132]
[1760239000984,2.65255569,3770.0,3768.0,1.92]
[1760239001184,2.65245714,3770.1,3768.0,1.92]
[1760239001389,2.65245714,3770.1,3768.2,1.92]
[1760239001741,2.65245714,3770.1,3770.0,0.132]
[1760239002088,2.65292267,3769.5,3768.6,2.65350349]
[1760239002320,2.65266061,3769.8,3769.7,0.132]
[1760239002637,2.65266061,3769.8,3767.8,0.002]
[1760239002638,2.65280135,3769.6,3769.5,0.132]
[1760239002821,2.65294211,3769.4,3769.3,0.002]
[1760239003024,2.65294211,3769.4,3769.3,0.134]
[1760239004527,2.65281972,3769.6,3769.3,0.134]
[1760239004728,0.132,3770.1,3769.5,0.132]
[1760239004964,2.65280135,3769.6,3769.5,0.132]
[1760239005427,2.65294211,3769.4,3769.3,0.002]
[1760239005638,2.65399824,3767.9,3766.5,0.002]
[1760239005797,2.65336446,3768.8,3767.1,2.65653416]
[1760239006103,2.65388281,3768.1,3767.2,2.65447863]
[1760239006313,2.65393619,3768.0,3767.1,0.002]
[1760239006659,0.2344,3770.8,3767.3,0.6336]
[1760239006925,2.65361901,3768.5,3767.5,2.65427395]
[1760239007124,1.92,3769.2,3767.1,0.002]
[1760239007293,2.65378686,3768.3,3767.3,2.65441704]
[1760239007491,2.65380199,3768.2,3767.3,2.65441704]
[1760239007695,1.92,3769.4,3767.1,0.002]
[1760239007921,12.43090055,3770.1,3767.5,0.6336]
[1760239008134,12.43090055,3770.1,3767.8,2.65606166]
[1760239008294,0.2344,3770.8,3767.8,0.002]
[1760239008295,12.43090055,3770.7,3767.8,0.002]
[1760239008494,12.43090055,3770.7,3768.8,2.65333657]
[1760239008698,2.65252993,3770.0,3768.8,2.65333018]
[1760239008922,0.4513,3771.0,3768.6,0.6336]
[1760239009117,2.65195714,3770.8,3767.8,1.922]
[1760239009316,1.92,3770.6,3767.9,0.6336]
[1760239009596,2.6532105,3769.1,3768.2,2.65372249]
[1760239009817,2.6532105,3769.1,3767.8,0.002]
[1760239009818,2.65266061,3769.8,3767.8,0.002]
[1760239010090,2.65287173,3769.5,3767.5,2.65427339]
[1760239010322,2.65366148,3768.4,3767.6,0.6336]
[1760239010702,2.65366148,3768.4,3767.6,3.28779219]
[1760239010902,2.65214311,3770.6,3767.5,0.6336]
[1760239011215,2.65330199,3768.9,3767.8,2.65399978]
[1760239011395,2.65359372,3768.5,3767.7,0.6336]
[1760239011727,2.65343554,3768.7,3767.9,2.65398283]
[1760239012395,0.52391634,3771.1,3767.9,0.6336]
[1760239012600,1.92,3770.2,3767.4,0.6336]
[1760239012801,2.65330804,3768.9,3768.0,2.65386294]
[1760239013001,2.65323518,3769.0,3767.5,0.6336]
[1760239013228,2.65337476,3768.8,3767.5,0.6336]
[1760239013431,2.65337476,3768.8,3767.3,2.65440326]
[1760239013432,2.3869,3769.9,3767.7,0.6336]
[1760239013631,2.65364923,3768.4,3767.7,0.6336]
[1760239013931,2.65382023,3768.2,3767.1,2.65655042]
[1760239014110,2.65382023,3768.2,3767.4,0.6336]
[1760239014428,2.65414781,3767.7,3767.1,0.002]
[1760239014633,0.4669,3768.9,3767.1,0.002]
[1760239014634,1.92,3768.8,3767.1,0.002]
[1760239014798,2.65441913,3767.4,3767.1,0.002]
[1760239015197,2.65448393,3767.3,3767.1,0.002]
[1760239015598,2.65417975,3767.7,3767.1,0.002]
[1760239015800,2.6542146,3767.6,3767.2,0.132]
[1760239016031,0.132,3768.5,3767.8,0.132]
[1760239016231,3.11972601,3769.6,3767.4,2.65430333]
[1760239016438,2.65343292,3768.8,3767.1,0.002]
[1760239016601,12.43090055,3769.9,3767.4,0.6336]
[1760239016931,2.65325716,3769.0,3768.2,2.6537337]
[1760239017132,2.65336693,3768.8,3768.0,0.6336]
[1760239017334,1.92,3769.7,3764.2,0.99999999]
[1760239017633,1.92,3769.7,3762.6,0.26577366]
[1760239017634,2.65287173,3769.5,3767.2,0.6336]
[1760239017802,2.65371382,3768.4,3767.5,2.65424252]
[1760239018159,0.4669,3769.6,3766.8,2.65674222]
[1760239018160,2.65407354,3767.8,3767.0,2.65462225]
[1760239018305,2.65354995,3768.6,3766.8,0.002]
[1760239018758,2.65430425,3767.5,3766.8,0.002]
[1760239019149,2.65422465,3767.6,3766.8,2.65674783]
[1760239019506,2.65415442,3767.7,3766.9,2.654695]
[1760239020051,0.4669,3768.8,3766.8,0.002]
[1760239020237,2.65449139,3767.2,3766.8,0.002]
[1760239021921,2.65407813,3767.8,3766.8,0.002]
[1760239021922,0.2258,3768.5,3766.8,0.002]
[1760239022120,2.6541534,3767.7,3766.8,2.65676748]
[1760239022340,2.65441304,3767.4,3766.8,0.002]
[1760239022550,2.65371653,3768.3,3766.8,0.002]
[1760239022718,2.65446705,3767.3,3766.8,0.002]
[1760239023066,1.92,3767.7,3766.8,0.002]
[1760239023423,0.001,3768.6,3766.8,0.002]
[1760239023785,0.001,3768.6,3767.2,0.6336]
[1760239023917,0.001,3768.6,3768.0,0.6336]
[1760239024118,0.001,3768.6,3768.0,3.28752476]
[1760239024361,0.001,3768.6,3768.0,0.6336]
[1760239024528,0.001,3768.6,3767.2,0.6336]
[1760239024961,2.65364998,3768.4,3767.1,0.002]
[1760239025126,2.65364998,3768.4,3767.6,0.6336]
[1760239025330,2.65372265,3768.3,3767.6,0.6336]
[1760239025526,2.65360578,3768.5,3767.6,0.6336]
[1760239025726,2.65400774,3767.9,3767.1,0.6356]
[1760239026068,2.65457395,3768.6,3767.1,0.002]
[1760239026219,2.653577,3768.5,3767.9,0.6336]
[1760239026414,0.001,3768.6,3767.9,0.6336]
[1760239026612,2.65357569,3768.5,3768.4,0.132]
[1760239027215,2.65407147,3767.8,3767.1,0.002]
[1760239027643,2.65407147,3767.8,3767.7,0.132]
[1760239028149,0.001,3768.6,3767.1,0.002]
[1760239028357,2.65394361,3768.0,3767.3,0.6336]
[1760239029056,2.65401037,3767.9,3767.1,0.6356]
[1760239029421,2.65375973,3768.3,3767.2,3.28806851]
[1760239029621,2.65385723,3768.2,3767.4,0.6336]
[1760239029863,2.65385723,3768.2,3767.4,3.2878824]
[1760239030166,2.65357569,3768.5,3767.5,0.6336]
[1760239030467,2.65378803,3768.2,3767.5,0.6336]
[1760239030645,0.001,3768.6,3767.5,0.6336]
[1760239030819,0.001,3768.6,3768.2,0.6336]
[1760239031568,0.001,3768.6,3767.6,2.65416029]
[1760239031764,0.001,3768.6,3767.9,0.6336]
[1760239031932,2.65451008,3768.6,3767.9,0.6336]
[1760239032132,2.65358862,3768.5,3767.4,2.65428889]
[1760239032333,0.001,3768.6,3767.5,0.6336]
[1760239032534,0.001,3768.6,3767.1,0.002]
[1760239032740,0.001,3768.6,3767.4,0.6336]
[1760239032923,0.001,3768.6,3767.5,0.6336]
[1760239033119,2.65393021,3768.0,3767.5,0.6336]
[1760239033852,2.65386982,3768.1,3767.5,0.6336]
[1760239034169,0.001,3768.6,3767.6,0.6336]
[1760239034369,0.001,3768.6,3767.1,2.65650313]
[1760239034588,0.001,3768.6,3767.1,0.002]
[1760239034750,2.65436297,3767.4,3767.1,0.002]
[1760239035084,2.65449139,3767.2,3767.1,0.002]
[1760239036262,4.57449139,3767.2,3767.1,0.002]
[1760239036985,2.65455052,3768.6,3767.1,0.002]
[1760239036986,2.6536461,3768.4,3767.1,0.002]
[1760239037183,2.65449139,3767.2,3767.1,0.002]
[1760239037947,2.65449139,3767.2,3767.1,0.134]
[1760239038748,2.65449139,3767.2,3767.1,0.002]
[1760239039091,4.57449139,3767.2,3767.1,0.002]
[1760239039250,5.04139139,3767.2,3767.1,0.002]
[1760239039593,4.57449139,3767.2,3767.1,0.002]
[1760239040088,5.04139139,3767.2,3767.1,0.002]
[1760239041386,4.57449139,3767.2,3767.1,0.134]
[1760239042903,5.03149139,3767.2,3767.1,0.134]
[1760239043067,5.03149139,3767.2,3767.1,0.002]
[1760239043272,4.57449139,3767.2,3767.1,0.002]
[1760239044109,0.001,3768.8,3767.1,0.002]
[1760239044275,0.001,3768.8,3768.3,3.28731653]
[1760239046003,0.001,3768.8,3768.3,0.6336]
[1760239046169,0.001,3768.8,3768.3,3.28731653]
[1760239046374,0.001,3768.8,3768.3,0.6336]
[1760239046878,0.001,3768.8,3767.0,1.40990786]
[1760239047204,0.001,3768.8,3766.8,0.002]
[1760239047205,2.65364517,3768.5,3767.7,2.65412217]
[1760239047368,2.65364517,3768.5,3767.8,0.6336]
[1760239047573,2.65439396,3768.8,3767.6,0.6336]
[1760239047799,0.001,3768.8,3768.2,0.6336]
[1760239048070,0.001,3768.8,3768.0,0.6336]
[1760239048385,0.001,3768.8,3768.2,0.6336]
[1760239048706,0.001,3768.8,3768.1,0.6336]
[1760239048925,0.001,3768.8,3768.3,0.6336]
[1760239049534,0.001,3768.8,3768.3,3.28731653]
[1760239052441,0.001,3768.8,3768.3,5.20731653]
[1760239052940,1e-08,3768.8,3768.7,3.28703487]
[1760239053143,1e-08,3768.8,3768.7,5.20703487]
[1760239054127,1e-08,3768.8,3768.7,5.33903487]
[1760239055195,1e-08,3768.8,3768.7,2.052]
[1760239055395,1e-08,3768.8,3768.7,0.132]
[1760239055631,1e-08,3768.8,3768.3,2.65367361]
[1760239055932,1e-08,3768.8,3768.4,2.65363592]
[1760239056147,1e-08,3768.8,3767.7,1.40779654]
[1760239056311,2.65348924,3768.7,3767.4,1.40779654]
[1760239056494,2.65362367,3768.5,3767.3,1.40779654]
[1760239056699,0.001,3768.4,3767.8,2.65405736]
[1760239056934,0.001,3768.4,3767.9,2.65399767]
[1760239057227,0.001,3768.4,3767.8,2.65405207]
[1760239057533,2.65466341,3768.4,3767.6,2.65415262]
[1760239058115,2.65466341,3768.4,3767.8,0.6336]
[1760239058505,2.65372163,3768.3,3767.7,0.6336]
[1760239058702,2.65465718,3768.4,3767.7,0.6336]
[1760239059306,0.001,3768.4,3768.3,3.28731653]
[1760239061145,0.001,3768.4,3768.3,5.20731653]
[1760239065330,1e-08,3768.8,3768.7,5.20703487]
[1760239065651,1e-08,3768.8,3768.7,5.33903487]
[1760239065847,1e-08,3768.8,3768.7,6.7440512]
[1760239066050,1e-08,3768.8,3768.7,5.33903487]
[1760239067424,1e-08,3768.8,3768.7,4.70543487]
[1760239067625,1e-08,3768.8,3768.7,0.132]
[1760239068567,2.65336447,3768.8,3768.7,0.132]
[1760239069080,2.65336447,3768.8,3766.9,1.40501633]
[1760239069081,2.65343487,3768.7,3766.9,1.40501633]
[1760239069229,2.65393866,3768.0,3766.9,2.65469433]
[1760239069559,2.65400006,3767.9,3767.1,2.65655644]
[1760239069739,2.65441014,3767.4,3767.1,0.002]
[1760239069942,2.65449139,3767.2,3767.1,0.002]
[1760239072235,4.57449139,3767.2,3767.1,0.002]
[1760239072437,5.00319139,3767.2,3767.1,0.002]
[1760239073583,4.57449139,3767.2,3767.1,0.002]
[1760239074756,5.00319139,3767.2,3767.1,0.002]
[1760239077204,4.57449139,3767.2,3767.1,0.002]
[1760239077361,0.4287,3768.6,3767.1,0.002]
[1760239077563,2.65357569,3768.5,3767.1,0.002]
[1760239077792,1.92,3768.2,3767.1,0.002]
[1760239078164,2.65433392,3767.5,3767.1,0.002]
[1760239078457,2.65385738,3768.1,3767.1,0.002]
[1760239078458,2.65414317,3767.7,3767.1,0.002]
[1760239078689,2.6537385,3768.3,3767.1,0.002]
[1760239078886,2.3487,3768.6,3767.1,0.002]
[1760239078887,2.65436665,3767.4,3767.1,0.002]
[1760239079071,2.65385738,3768.1,3767.1,0.002]
[1760239079072,2.65425309,3767.6,3767.1,0.002]
[1760239079278,2.65412396,3767.8,3767.3,0.132]
[1760239079510,0.4287,3767.7,3767.5,0.132]
[1760239079804,2.65449139,3767.2,3767.1,0.134]
[1760239080579,3.08319139,3767.2,3767.1,0.002]
[1760239080785,2.65449139,3767.2,3767.1,0.002]
[1760239081981,2.65449139,3767.2,3767.1,0.134]
[1760239082216,3.08319139,3767.2,3767.1,0.134]
[1760239082403,2.65449139,3767.2,3767.1,0.134]
[1760239085209,5.00319139,3767.2,3767.1,0.002]
[1760239087220,4.57449139,3767.2,3767.1,0.002]
[1760239087384,5.00319139,3767.2,3767.1,0.002]
[1760239087786,2.65491424,3766.6,3766.5,1e-08]
[1760239088090,4.57491424,3766.6,3766.5,1e-08]
[1760239089525,5.00361424,3766.6,3766.5,1e-08]
[1760239092400,2.65519621,3766.2,3766.1,0.002]
[1760239092600,4.57519621,3766.2,3766.1,0.002]
[1760239092842,5.00389621,3766.2,3766.1,0.002]
[1760239095113,4.57519621,3766.2,3766.1,0.002]
[1760239095599,13.32026961,3767.3,3766.1,0.002]
[1760239095805,2.65508736,3766.4,3766.1,0.002]
[1760239096154,2.65458273,3767.1,3766.2,0.6336]
[1760239096356,0.4287,3768.0,3766.5,0.6336]
[1760239096664,13.32026962,3768.8,3766.5,0.6336]
[1760239096819,13.32026961,3768.3,3766.1,0.002]
[1760239097022,1.92,3767.7,3766.1,0.002]
[1760239097227,2.65485059,3766.7,3766.1,0.002]
[1760239097538,2.65478324,3766.8,3766.1,0.002]
[1760239098106,2.65519621,3766.2,3766.1,0.002]
[1760239098355,4.57519621,3766.2,3766.1,0.002]
[1760239098649,5.00389621,3766.2,3766.1,0.002]
[1760239099034,4.57519621,3766.2,3766.1,0.134]
[1760239102533,13.32026961,3767.5,3766.1,0.002]
[1760239102735,1.92,3766.9,3766.1,0.002]
[1760239102926,2.65519621,3766.2,3766.1,0.002]
[1760239103130,4.57519621,3766.2,3766.1,0.002]
[1760239103327,5.04859621,3766.2,3766.1,0.002]
[1760239105347,4.57526672,3766.1,3766.0,1e-08]
[1760239105534,5.04866672,3766.1,3766.0,1e-08]
[1760239105735,4.57554876,3765.7,3765.6,1e-08]
[1760239106035,17.89581837,3765.7,3765.6,1e-08]
[1760239106237,18.36921837,3765.7,3765.6,1e-08]
[1760239107451,2.65618359,3764.8,3763.3,1.40501633]
[1760239107630,4.57618359,3764.8,3763.1,1.40501633]
[1760239107836,4.57618359,3764.8,3763.3,2.65718603]
[1760239108045,4.57618359,3764.8,3763.1,1.40501633]
[1760239108246,2.65618359,3764.8,3763.6,2.65698871]
[1760239108450,2.65618359,3764.8,3763.7,3.29054953]
[1760239109169,2.65618359,3764.8,3763.7,0.6336]
[1760239109557,2.65618359,3764.8,3763.7,3.29055324]
[1760239110433,2.65618359,3764.8,3763.7,0.6336]
[1760239111067,2.65618359,3764.8,3763.8,0.6336]
[1760239111456,3.12958359,3764.8,3763.4,0.6336]
[1760239111845,3.12958359,3764.8,3763.2,0.6336]
[1760239112046,3.12958359,3764.8,3762.3,1.40501633]
[1760239112047,2.65716554,3763.5,3762.3,1.40501633]
[1760239112270,2.65719619,3763.4,3762.3,1.40501633]
[1760239112477,2.65719619,3763.4,3762.5,2.65780009]
[1760239112643,2.65711383,3763.5,3763.3,0.1328]
[1760239113131,2.6571717,3763.4,3763.3,0.1328]
[1760239113634,4.70931309,3764.4,3763.3,0.1328]
[1760239113973,0.1328,3764.4,3763.3,0.1328]
[1760239114278,0.1328,3764.8,3763.4,2.65712914]
[1760239114444,2.65642089,3764.5,3764.3,0.1328]
[1760239114649,2.89307936,3765.4,3764.9,0.1328]
[1760239114860,0.4734,3765.6,3763.7,0.6336]
[1760239114861,2.65564957,3765.6,3763.7,0.6336]
[1760239115064,2.65619735,3764.8,3764.1,0.6336]
[1760239115573,2.65621003,3764.8,3764.2,0.6336]
[1760239116069,2.65621003,3764.8,3764.1,0.6336]
[1760239116280,0.2373,3768.1,3764.0,0.6336]
[1760239116483,0.4164778,3766.8,3765.7,0.6336]
[1760239116642,0.4734,3767.3,3764.3,2.6565364]
[1760239116643,0.4734,3767.3,3764.9,0.6336]
[1760239116838,2.65586222,3766.7,3765.6,3.28919319]
[1760239117061,0.001,3766.7,3765.0,0.6336]
[1760239117366,2.65504736,3766.5,3765.7,0.6336]
[1760239118285,0.4744,3766.3,3764.8,0.6336]
[1760239118440,0.4744,3766.3,3765.0,0.6336]
[1760239118640,0.4744,3766.3,3764.8,0.6336]
[1760239118858,2.65560033,3765.7,3764.8,0.6336]
[1760239119057,0.4744,3766.3,3764.8,3.28978048]
[1760239119347,0.4744,3766.3,3764.8,0.6336]
[1760239119552,2.6556724,3765.6,3764.8,0.6336]
[1760239120339,2.65519621,3766.2,3765.3,0.6336]
[1760239120572,2.6553594,3766.0,3764.5,2.5536]
[1760239120782,2.6553594,3766.0,3765.2,0.6336]
[1760239121739,0.001,3766.3,3764.6,2.5536]
[1760239121948,0.001,3766.3,3765.7,0.6336]
[1760239122351,0.001,3766.3,3766.2,3.28879621]
[1760239123553,0.001,3766.3,3766.2,5.20879621]
[1760239123945,0.001,3766.3,3766.2,6.61381254]
[1760239124149,0.001,3766.7,3766.6,3.28851424]
[1760239124346,0.001,3766.7,3766.6,5.20851424]
[1760239124983,0.001,3766.7,3766.6,7.21263738]
[1760239125370,0.001,3766.7,3766.6,5.34051424]
[1760239129003,0.001,3768.4,3767.0,3.28823233]
[1760239129298,0.001,3768.4,3768.3,5.20731653]
[1760239133164,0.001,3768.4,3768.3,4.57371653]
[1760239133370,0.001,3768.4,3768.3,5.20731653]
[1760239133995,0.001,3768.4,3768.3,1.92]
[1760239134196,0.001,3768.4,3768.3,4.57371653]
[1760239134501,0.001,3768.4,3768.3,5.20731653]
[1760239136575,0.001,3768.4,3768.3,2.5536]
[1760239136909,0.001,3768.4,3768.3,5.20731653]
[1760239139006,0.001,3768.4,3768.3,5.33931653]
[1760239139678,0.001,3768.4,3768.3,0.132]
[1760239140191,0.001,3768.4,3768.3,0.7656]
[1760239140395,0.001,3768.4,3768.3,3.41931653]
[1760239143116,0.001,3768.4,3768.3,0.132]
[1760239143412,0.001,3768.4,3768.3,2.78571653]
[1760239143621,0.001,3768.4,3768.3,3.41931653]
[1760239143815,0.001,3768.4,3768.3,5.33931653]
[1760239146605,0.001,3768.4,3768.3,0.132]
[1760239147118,0.001,3768.4,3768.0,1.92]
[1760239147323,0.001,3768.4,3766.3,0.002]
[1760239147498,2.65385119,3768.2,3766.6,2.65489899]
[1760239147683,2.65371653,3768.3,3766.4,2.6550551]
[1760239147887,2.65371653,3768.3,3766.3,2.65706187]
[1760239147888,2.65449139,3767.2,3766.3,2.65706187]
[1760239148139,2.65449139,3767.2,3766.3,2.65712352]
[1760239148289,2.653735,3768.3,3766.3,0.002]
[1760239148621,0.001,3768.4,3766.3,0.002]
[1760239149025,0.001,3768.4,3767.5,0.6336]
[1760239149186,2.65390474,3768.1,3767.5,0.6336]
[1760239149725,2.65390474,3768.1,3767.2,2.65448118]
[1760239149726,2.65390474,3768.1,3767.4,0.6336]
[1760239150424,2.65371653,3768.3,3767.5,2.6542306]
[1760239150628,2.6547155,3768.4,3767.1,0.002]
[1760239150829,0.001,3768.4,3767.1,0.002]
[1760239150997,2.65371653,3768.3,3767.1,0.002]
[1760239151198,0.001,3768.4,3767.1,0.002]
[1760239151394,2.65383284,3768.2,3767.2,0.6336]
[1760239151620,2.6546485,3768.4,3767.3,0.6336]
[1760239151821,2.6546485,3768.4,3767.5,0.6336]
[1760239151822,0.001,3768.4,3767.5,0.6336]
[1760239151994,2.65465873,3768.4,3767.6,2.65420957]
[1760239152530,0.001,3768.4,3768.1,0.6336]
[1760239153292,0.001,3768.4,3768.3,2.65371653]
[1760239153492,0.001,3768.4,3768.3,3.28731653]
[1760239153720,0.001,3768.4,3768.3,5.20731653]
[1760239155044,0.001,3768.4,3768.3,6.61175475]
[1760239155356,0.001,3768.4,3768.3,5.20731653]
[1760239155754,0.001,3768.4,3768.3,7.07990083]
[1760239155917,1e-08,3768.8,3768.7,5.20703487]
[1760239157569,1e-08,3768.8,3768.7,2.5536]
[1760239157863,1e-08,3768.8,3767.7,1.41091945]
[1760239158075,1e-08,3768.8,3768.1,2.65380234]
[1760239158243,1e-08,3768.8,3767.8,1.41091945]
[1760239158438,1e-08,3768.8,3767.7,1.41091945]
[1760239158767,1e-08,3768.8,3767.7,2.65411666]
[1760239159068,1e-08,3768.8,3767.5,1.41091945]
[1760239159069,1e-08,3768.8,3767.9,1.92]
[1760239159257,2.65350716,3768.6,3767.4,1.41091945]
[1760239159454,2.65344431,3768.7,3767.3,1.41091945]
[1760239159770,1e-08,3768.8,3767.8,1.92]
[1760239159971,1e-08,3768.8,3767.1,0.002]
[1760239160337,2.65420391,3767.7,3767.1,0.002]
[1760239161170,1.92,3768.6,3767.2,2.65448378]
[1760239161361,2.65399868,3767.9,3767.2,0.6336]
[1760239161707,2.65407989,3767.8,3767.2,0.6336]
[1760239161872,1e-08,3768.8,3767.2,0.6336]
[1760239162171,2.65364201,3768.5,3767.7,0.6336]
[1760239162338,2.65356289,3768.6,3767.7,2.65409966]
[1760239163053,1e-08,3768.8,3768.0,0.6336]
[1760239163258,1e-08,3768.8,3768.2,0.6336]
[1760239163660,1e-08,3768.8,3768.6,0.6336]
[1760239164041,1e-08,3768.8,3768.7,3.28703487]
[1760239164767,1e-08,3768.8,3768.7,0.6336]
[1760239165273,1e-08,3768.8,3767.3,1.41091945]
[1760239165510,1e-08,3768.8,3767.9,0.6336]
[1760239165652,1e-08,3768.8,3768.2,0.6336]
[1760239165958,1e-08,3768.8,3768.2,3.28737427]
[1760239166160,1e-08,3768.8,3767.9,0.6336]
[1760239166362,1e-08,3768.8,3768.3,0.6336]
[1760239166999,1e-08,3768.8,3768.7,3.28703487]
[1760239167495,1e-08,3768.8,3768.7,3.41903487]
[1760239170162,1e-08,3768.8,3768.7,5.33903487]
[1760239171608,1e-08,3768.8,3768.7,5.20703487]
[1760239172407,1e-08,3768.8,3768.2,2.65372479]
[1760239172610,1e-08,3768.8,3767.5,1.41091945]
[1760239172777,1e-08,3768.8,3767.6,1.41091945]
[1760239173320,1e-08,3768.8,3767.8,2.5536]
[1760239173622,1e-08,3768.8,3768.4,0.6336]
[1760239173918,1e-08,3768.8,3768.2,0.6336]
[1760239174125,1e-08,3768.8,3768.0,2.65385955]
[1760239174279,2.65341822,3768.8,3768.0,2.65385955]
[1760239174477,2.65344018,3768.7,3768.1,0.6336]
[1760239175018,2.65336692,3768.8,3768.1,0.6336]
[1760239175214,2.65343565,3768.7,3768.1,0.6336]
[1760239175414,2.65336939,3768.8,3768.1,0.6336]
[1760239175927,1e-08,3768.8,3768.2,0.6336]
[1760239176417,1e-08,3768.8,3767.9,0.6336]
[1760239176756,1e-08,3768.8,3768.3,0.6336]
[1760239177079,1e-08,3768.8,3768.4,2.65357987]
[1760239177280,1e-08,3768.8,3768.5,2.65354231]
[1760239177474,1e-08,3768.8,3768.3,2.65371653]
[1760239177777,1e-08,3768.8,3768.4,0.6336]
[1760239178720,1e-08,3768.8,3768.4,2.6536456]
[1760239179215,1e-08,3768.8,3767.8,1.41091945]
[1760239179419,1e-08,3768.8,3767.7,1.41091945]
[1760239179593,2.65365037,3768.4,3767.6,2.65420094]
[1760239179785,2.65365037,3768.4,3767.7,0.6336]
[1760239180123,2.65371845,3768.3,3767.3,1.41091945]
[1760239180277,2.65365878,3768.4,3767.4,0.6336]
[1760239180510,2.65371839,3768.3,3767.6,0.6336]
[1760239180715,2.65371839,3768.3,3767.6,3.28780063]
[1760239180910,2.65364498,3768.5,3767.6,3.28780063]
[1760239181116,2.65364753,3768.4,3767.6,3.28780063]
[1760239181529,2.65371853,3768.3,3767.5,0.6336]
[1760239182053,2.65359303,3768.5,3768.2,0.132]
[1760239182456,2.65364923,3768.4,3767.7,0.6336]
[1760239182755,2.65372125,3768.3,3767.7,0.6336]
[1760239182957,2.65364101,3768.5,3767.6,0.6336]
[1760239183155,2.65365558,3768.4,3768.2,0.132]
[1760239183448,2.65400886,3767.9,3767.1,4.06741854]
[1760239183617,2.3744,3768.7,3768.2,0.132]
[1760239183812,1e-08,3768.8,3767.5,2.65422254]
[1760239184050,2.65357569,3768.5,3768.4,0.132]
[1760239184750,1e-08,3768.8,3767.3,0.6336]
[1760239184917,2.65352954,3768.6,3768.4,0.132]
[1760239185115,2.65352954,3768.6,3767.9,0.6336]
[1760239185332,2.65352954,3768.6,3768.5,0.132]
[1760239185941,0.001,3769.0,3768.7,2.65343487]
[1760239186146,0.001,3769.6,3769.5,2.65287173]
[1760239186456,0.001,3769.6,3769.5,5.20647173]
[1760239186651,0.001,3769.6,3769.5,7.08677363]
[1760239186814,0.001,3771.7,3769.5,7.08677363]
[1760239186815,0.001,3771.7,3771.0,0.6336]
[1760239187017,0.001,3771.7,3771.1,2.65173945]
[1760239187252,0.001,3771.7,3771.4,2.65150464]
[1760239187553,0.001,3771.7,3771.3,0.6336]
[1760239187754,0.001,3771.7,3770.9,0.6336]
[1760239187951,0.001,3771.7,3771.6,0.6336]
[1760239188313,0.001,3771.7,3771.3,3.28514495]
[1760239188652,0.001,3771.7,3771.6,0.6336]
[1760239189015,0.001,3771.7,3771.5,2.65141196]
[1760239189016,0.001,3771.7,3771.3,0.6336]
[1760239189236,0.001,3771.7,3771.5,0.6336]
[1760239189628,0.001,3771.7,3771.4,0.6336]
[1760239189840,0.001,3771.7,3771.6,3.28499463]
[1760239190626,0.001,3771.7,3771.6,5.20499463]
[1760239191794,0.001,3771.7,3771.6,2.5536]
[1760239192356,0.001,3771.7,3771.6,0.6336]
[1760239193072,0.001,3771.7,3771.6,3.28499463]
[1760239194543,0.001,3771.7,3771.6,0.6336]
[1760239196126,0.001,3771.7,3771.6,0.7656]
[1760239196629,0.001,3771.7,3771.6,0.132]
[1760239197219,2.65232433,3771.7,3771.6,0.132]
[1760239197419,0.001,3771.7,3771.6,0.132]
[1760239199567,0.001,3771.7,3771.6,0.7656]
[1760239200271,0.001,3771.7,3771.6,0.132]
[1760239200475,2.65232433,3771.7,3771.6,0.132]
[1760239200676,0.001,3771.7,3771.6,0.7656]
[1760239201265,0.001,3771.7,3771.6,3.28499463]
[1760239201495,0.001,3771.7,3771.6,5.20499463]
[1760239201889,0.001,3771.7,3771.6,2.5536]
[1760239202070,0.001,3771.7,3771.6,0.6336]
[1760239202270,0.001,3771.7,3771.6,3.28499463]
[1760239203019,0.001,3771.7,3771.6,0.6336]
[1760239203166,0.001,3771.7,3771.1,2.65172307]
[1760239203502,0.001,3771.7,3771.3,0.6336]
[1760239203702,2.65150782,3771.5,3770.6,2.65203313]
[1760239204202,2.65154434,3771.4,3770.8,0.6336]
[1760239204364,2.65154434,3771.4,3770.6,2.65203313]
[1760239204365,0.001,3771.7,3769.6,0.002]
[1760239204565,0.001,3771.7,3770.1,0.6336]
[1760239204763,0.001,3771.7,3770.1,2.5536]
[1760239205001,0.001,3771.7,3771.6,3.28499463]
[1760239205302,0.001,3771.7,3771.6,5.20499463]
[1760239207316,0.001,3771.7,3771.6,2.5536]
[1760239207612,0.001,3771.7,3771.6,0.6336]
[1760239211512,0.001,3771.7,3771.6,3.41699463]
[1760239212217,0.001,3771.7,3771.6,0.132]
[1760239212625,2.65232433,3771.7,3771.6,0.132]
[1760239212772,0.001,3771.7,3771.6,0.132]
[1760239213518,0.001,3771.7,3771.6,0.6336]
[1760239214443,0.001,3771.7,3771.6,3.28499463]